[Event "NJSK 2023 Jeugd A"]
[Site "Almelo, Netherlands"]
[Date "2023.05.06"]
[Round "7.8"]
[White "Alvares, Thomas"]
[Black "Bon, Gijs"]
[Result "1-0"]
[TimeControl "90min/40moves + 30min + 30sec/move"]
[WhiteElo "1825"]
[BlackElo "1805"]

1. e4 {[%clk 01:30:58]} {[%emt 00:00:02]} c6 {[%clk 00:45:37]} {[%emt
00:45:23]} 2. d4 {[%clk 01:30:15]} {[%emt 00:01:13]} d5 {[%clk 00:46:02]}
{[%emt 00:00:05]} 3. e5 {[%clk 01:30:40]} {[%emt 00:00:05]} Bf5 {[%clk
00:46:27]} {[%emt 00:00:04]} 4. h4 {[%clk 01:31:06]} {[%emt 00:00:05]} h5
{[%clk 00:46:54]} {[%emt 00:00:03]} 5. Bd3 {[%clk 01:31:30]} {[%emt 00:00:05]}
Bxd3 {[%clk 00:47:20]} {[%emt 00:00:04]} 6. Qxd3 {[%clk 01:31:55]} {[%emt
00:00:06]} e6 {[%clk 00:47:46]} {[%emt 00:00:03]} 7. Nf3 {[%clk 01:32:17]}
{[%emt 00:00:08]} c5 {[%clk 00:48:11]} {[%emt 00:00:04]} 8. Be3 {[%clk
01:22:50]} {[%emt 00:09:58]} Qb6 {[%clk 00:46:04]} {[%emt 00:02:37]} 9. Nc3
{[%clk 00:56:34]} {[%emt 00:26:47]} Nc6 {[%clk 00:46:02]} {[%emt 00:00:32]} 10.
dxc5 {[%clk 00:53:54]} {[%emt 00:03:10]} Bxc5 {[%clk 00:46:19]} {[%emt
00:00:13]} 11. Bxc5 {[%clk 00:53:43]} {[%emt 00:00:41]} Qxc5 {[%clk 00:46:42]}
{[%emt 00:00:06]} 12. O-O {[%clk 00:52:36]} {[%emt 00:01:38]} Nge7 {[%clk
00:45:42]} {[%emt 00:01:30]} 13. Rfe1 {[%clk 00:51:37]} {[%emt 00:01:28]} Nf5
{[%clk 00:42:23]} {[%emt 00:03:49]} 14. a3 {[%clk 00:38:14]} {[%emt 00:13:53]}
Qa5 {[%clk 00:30:48]} {[%emt 00:12:05]} 15. Rac1 {[%clk 00:34:15]} {[%emt
00:04:29]} Qd8 {[%clk 00:29:36]} {[%emt 00:01:43]} 16. g3 {[%clk 00:32:19]}
{[%emt 00:02:26]} a6 {[%clk 00:29:57]} {[%emt 00:00:09]} 17. Ne2 {[%clk
00:29:47]} {[%emt 00:03:01]} b5 {[%clk 00:27:29]} {[%emt 00:02:59]} 18. a4
{[%clk 00:27:02]} {[%emt 00:03:15]} b4 {[%clk 00:27:10]} {[%emt 00:00:48]} 19.
c4 {[%clk 00:21:58]} {[%emt 00:05:34]} bxc3 {[%clk 00:16:28]} {[%emt 00:11:12]}
20. Rxc3 {[%clk 00:19:05]} {[%emt 00:03:23]} Na5 {[%clk 00:15:38]} {[%emt
00:01:21]} 21. Rec1 {[%clk 00:17:53]} {[%emt 00:01:41]} O-O {[%clk 00:15:25]}
{[%emt 00:00:43]} 22. Ned4 {[%clk 00:15:16]} {[%emt 00:03:07]} Nxd4 {[%clk
00:15:42]} {[%emt 00:00:13]} 23. Qxd4 {[%clk 00:14:20]} {[%emt 00:01:27]} Rb8
{[%clk 00:15:27]} {[%emt 00:00:44]} 24. Ng5 {[%clk 00:08:52]} {[%emt 00:05:58]}
Qb6 {[%clk 00:13:02]} {[%emt 00:02:56]} 25. Qd3 {[%clk 00:05:04]} {[%emt
00:04:18]} g6 {[%clk 00:13:13]} {[%emt 00:00:19]} 26. b3 {[%clk 00:02:40]}
{[%emt 00:02:54]} Rb7 {[%clk 00:04:18]} {[%emt 00:09:24]} 27. Qc2 {[%clk
00:02:00]} {[%emt 00:01:10]} Qd4 {[%clk 00:02:18]} {[%emt 00:02:30]} 28. Re1
{[%clk 00:00:48]} {[%emt 00:01:41]} Rfb8 {[%clk 00:01:15]} {[%emt 00:01:34]} 29.
Rc8+ {[%clk 00:00:54]} {[%emt 00:00:24]} Kg7 {[%clk 00:00:48]} {[%emt
00:00:58]} 30. Rxb8 {[%clk 00:01:06]} {[%emt 00:00:18]} Rxb8 {[%clk 00:01:13]}
{[%emt 00:00:05]} 31. Qc7 {[%clk 00:01:00]} {[%emt 00:00:36]} Rb7 {[%clk
00:00:33]} {[%emt 00:01:10]} 32. Qxa5 {[%clk 00:00:41]} {[%emt 00:00:51]} Qb2
{[%clk 00:00:31]} {[%emt 00:00:30]} 33. Re3 {[%clk 00:00:33]} {[%emt 00:00:36]}
Qa1+ {[%clk 00:00:31]} {[%emt 00:00:31]} 34. Kg2 {[%clk 00:00:54]} {[%emt
00:00:09]} Qb1 {[%clk 00:00:31]} {[%emt 00:00:31]} 35. Rf3 {[%clk 00:00:47]}
{[%emt 00:00:36]} d4 {[%clk 00:00:47]} {[%emt 00:00:14]} 36. Qxa6 {[%clk
00:00:40]} {[%emt 00:00:38]} Rc7 {[%clk 00:00:31]} {[%emt 00:00:46]} 37. Qd6
{[%clk 00:00:42]} {[%emt 00:00:28]} Qc2 {[%clk 00:00:31]} {[%emt 00:00:30]} 38.
Qxd4 {[%clk 00:00:31]} {[%emt 00:00:41]} Qc6 {[%clk 00:00:38]} {[%emt
00:00:23]} 39. Qd8 {[%clk 00:00:42]} {[%emt 00:00:18]} Rb7 {[%clk 00:00:45]}
{[%emt 00:00:23]} 40. Qf6+ {[%clk 00:00:52]} {[%emt 00:00:20]} Kg8 {[%clk
00:01:01]} {[%emt 00:00:14]} 41. Nxf7 {[%clk 00:01:06]} {[%emt 00:00:16]} Rxb3
{[%clk 00:01:04]} {[%emt 00:00:27]} 42. Qh8# {[%clk 00:01:28]} {[%emt
00:00:07]} 1-0

[Event "NJSK 2023 Jeugd A"]
[Site "Almelo, Netherlands"]
[Date "2023.05.06"]
[Round "8.1"]
[White "Van der Hagen, Loek"]
[Black "De Winter, Arthur"]
[Result "0-1"]
[TimeControl "90min/40moves + 30min + 30sec/move"]
[WhiteElo "2273"]
[BlackElo "2374"]

1. d4 {[%clk 00:05:05]} Nf6 {[%clk 00:05:04]} {[%emt 00:00:02]} 2. c4 {[%clk
00:05:07]} {[%emt 00:00:02]} g6 {[%clk 00:05:05]} {[%emt 00:00:01]} 3. Nc3
{[%clk 00:05:09]} {[%emt 00:00:02]} Bg7 {[%clk 00:05:06]} {[%emt 00:00:02]} 4.
e4 {[%clk 00:05:10]} {[%emt 00:00:01]} d6 {[%clk 00:05:08]} {[%emt 00:00:01]} 5.
h3 {[%clk 00:05:12]} {[%emt 00:00:02]} O-O {[%clk 00:05:08]} {[%emt 00:00:02]}
6. Be3 {[%clk 00:05:12]} {[%emt 00:00:03]} e5 {[%clk 00:05:09]} {[%emt
00:00:02]} 7. d5 {[%clk 00:05:10]} {[%emt 00:00:05]} Na6 {[%clk 00:05:10]}
{[%emt 00:00:02]} 8. g4 {[%clk 00:05:07]} {[%emt 00:00:06]} Nc5 {[%clk
00:05:12]} {[%emt 00:00:02]} 9. f3 {[%clk 00:05:08]} {[%emt 00:00:02]} a5
{[%clk 00:05:13]} {[%emt 00:00:02]} 10. Nge2 {[%clk 00:05:08]} {[%emt
00:00:03]} c6 {[%clk 00:05:12]} {[%emt 00:00:04]} 11. Ng3 {[%clk 00:05:06]}
{[%emt 00:00:05]} h5 {[%clk 00:05:08]} {[%emt 00:00:07]} 12. Rg1 {[%clk
00:05:04]} {[%emt 00:00:06]} h4 {[%clk 00:05:01]} {[%emt 00:00:10]} 13. Nf5
{[%clk 00:05:04]} {[%emt 00:00:03]} gxf5 {[%clk 00:04:56]} {[%emt 00:00:08]} 14.
gxf5 {[%clk 00:05:06]} {[%emt 00:00:02]} Kh7 {[%clk 00:04:24]} {[%emt
00:00:35]} 15. Qd2 {[%clk 00:04:23]} {[%emt 00:00:45]} Nh5 {[%clk 00:03:20]}
{[%emt 00:01:06]} 16. dxc6 {[%clk 00:04:07]} {[%emt 00:00:20]} bxc6 {[%clk
00:02:22]} {[%emt 00:01:01]} 17. O-O-O {[%clk 00:04:08]} {[%emt 00:00:02]} Nb7
{[%clk 00:02:04]} {[%emt 00:00:22]} 18. Rg4 {[%clk 00:03:09]} {[%emt 00:01:02]}
Nf4 {[%clk 00:01:50]} {[%emt 00:00:17]} 19. Bxf4 {[%clk 00:02:12]} {[%emt
00:01:00]} exf4 {[%clk 00:01:52]} {[%emt 00:00:01]} 20. Qxf4 {[%clk 00:02:07]}
{[%emt 00:00:07]} Bh6 {[%clk 00:01:53]} {[%emt 00:00:02]} 0-1

[Event "NJSK 2023 Jeugd A"]
[Site "Almelo, Netherlands"]
[Date "2023.05.06"]
[Round "9.1"]
[White "De Winter, Arthur"]
[Black "Van der Hagen, Loek"]
[Result "1/2-1/2"]
[TimeControl "90min/40moves + 30min + 30sec/move"]
[WhiteElo "2374"]
[BlackElo "2273"]

1. e4 {[%clk 00:05:04]} {[%emt 00:00:02]} g6 {[%clk 00:05:06]} {[%emt
00:00:01]} 2. d4 {[%clk 00:05:04]} {[%emt 00:00:02]} Bg7 {[%clk 00:05:08]}
{[%emt 00:00:02]} 3. Nf3 {[%clk 00:05:01]} {[%emt 00:00:06]} d6 {[%clk
00:05:09]} {[%emt 00:00:02]} 4. Bc4 {[%clk 00:05:02]} {[%emt 00:00:01]} Nf6
{[%clk 00:04:30]} {[%emt 00:00:42]} 5. Qe2 {[%clk 00:05:03]} {[%emt 00:00:02]}
c6 {[%clk 00:04:06]} {[%emt 00:00:27]} 6. e5 {[%clk 00:05:00]} {[%emt
00:00:06]} dxe5 {[%clk 00:03:53]} {[%emt 00:00:16]} 7. dxe5 {[%clk 00:05:01]}
{[%emt 00:00:02]} Nd5 {[%clk 00:03:55]} {[%emt 00:00:01]} 8. h3 {[%clk
00:05:01]} {[%emt 00:00:04]} O-O {[%clk 00:03:49]} {[%emt 00:00:09]} 9. O-O
{[%clk 00:05:00]} {[%emt 00:00:03]} b5 {[%clk 00:03:44]} {[%emt 00:00:08]} 10.
Bb3 {[%clk 00:04:56]} {[%emt 00:00:07]} a5 {[%clk 00:03:42]} {[%emt 00:00:06]}
11. a4 {[%clk 00:04:26]} {[%emt 00:00:33]} b4 {[%clk 00:03:30]} {[%emt
00:00:14]} 12. Rd1 {[%clk 00:04:20]} {[%emt 00:00:08]} Qc7 {[%clk 00:02:40]}
{[%emt 00:00:54]} 13. Nbd2 {[%emt 00:00:47]} Na6 {[%clk 00:02:18]} 14. Nf1
{[%clk 00:03:24]} {[%emt 00:00:40]} Rd8 {[%clk 00:01:59]} {[%emt 00:00:21]} 15.
Ne3 {[%clk 00:03:09]} {[%emt 00:00:19]} Bb7 {[%clk 00:01:04]} {[%emt 00:00:58]}
16. Ng4 {[%clk 00:02:37]} {[%emt 00:00:34]} Nc5 {[%clk 00:00:54]} {[%emt
00:00:14]} 17. Bc4 {[%clk 00:02:15]} {[%emt 00:00:25]} Nb6 {[%clk 00:00:31]}
{[%emt 00:00:26]} 18. Nh6+ {[%clk 00:02:05]} {[%emt 00:00:13]} Bxh6 {[%clk
00:00:29]} {[%emt 00:00:05]} 19. Bxh6 {[%clk 00:02:06]} {[%emt 00:00:02]} Nxc4
{[%clk 00:00:30]} {[%emt 00:00:02]} 20. Qxc4 {[%clk 00:02:05]} {[%emt
00:00:04]} Ne6 {[%clk 00:00:32]} 21. Re1 {[%clk 00:00:59]} {[%emt 00:01:08]} c5
{[%clk 00:00:28]} {[%emt 00:00:07]} 22. Ng5 {[%clk 00:00:58]} {[%emt 00:00:04]}
Nxg5 {[%clk 00:00:28]} {[%emt 00:00:04]} 23. Bxg5 {[%clk 00:00:59]} {[%emt
00:00:01]} Bd5 {[%clk 00:00:28]} {[%emt 00:00:03]} 24. Qh4 {[%clk 00:01:01]}
{[%emt 00:00:01]} Rd7 {[%clk 00:00:26]} {[%emt 00:00:06]} 25. Rad1 {[%clk
00:00:53]} {[%emt 00:00:10]} Rad8 {[%clk 00:00:20]} {[%emt 00:00:09]} 26. Rd3
{[%clk 00:00:41]} {[%emt 00:00:15]} c4 {[%clk 00:00:19]} {[%emt 00:00:05]} 27.
Rd4 {[%clk 00:00:37]} {[%emt 00:00:07]} Be6 {[%clk 00:00:19]} {[%emt 00:00:03]}
28. Red1 {[%clk 00:00:28]} {[%emt 00:00:12]} Rxd4 {[%clk 00:00:20]} {[%emt
00:00:02]} 29. Rxd4 {[%clk 00:00:30]} Rxd4 {[%clk 00:00:22]} {[%emt 00:00:01]}
30. Qxd4 {[%clk 00:00:32]} {[%emt 00:00:01]} h5 {[%clk 00:00:18]} {[%emt
00:00:08]} 31. Be3 {[%clk 00:00:27]} {[%emt 00:00:08]} Qd7 {[%clk 00:00:12]}
{[%emt 00:00:09]} 32. Qxd7 {[%clk 00:00:22]} {[%emt 00:00:08]} Bxd7 {[%clk
00:00:14]} 33. Bb6 {[%clk 00:00:23]} {[%emt 00:00:02]} Bxa4 {[%clk 00:00:15]}
{[%emt 00:00:02]} 34. Bxa5 {[%clk 00:00:25]} {[%emt 00:00:01]} b3 {[%clk
00:00:13]} {[%emt 00:00:05]} 35. cxb3 {[%clk 00:00:26]} {[%emt 00:00:02]} cxb3
{[%clk 00:00:14]} {[%emt 00:00:02]} 36. f4 {[%clk 00:00:26]} {[%emt 00:00:03]}
f6 {[%clk 00:00:14]} {[%emt 00:00:03]} 37. exf6 {[%clk 00:00:27]} {[%emt
00:00:02]} exf6 {[%clk 00:00:16]} 38. Bc3 {[%clk 00:00:28]} {[%emt 00:00:01]}
Kf7 {[%clk 00:00:18]} 39. Kf2 {[%clk 00:00:30]} {[%emt 00:00:01]} Ke6 {[%clk
00:00:21]} 40. g3 {[%clk 00:00:27]} {[%emt 00:00:07]} Bc6 {[%clk 00:00:23]} 41.
h4 {[%clk 00:00:29]} {[%emt 00:00:02]} Kf5 {[%clk 00:00:22]} {[%emt 00:00:03]}
42. Bd4 {[%clk 00:00:30]} {[%emt 00:00:02]} g5 {[%clk 00:00:23]} {[%emt
00:00:02]} 43. fxg5 {[%clk 00:00:31]} {[%emt 00:00:01]} fxg5 {[%clk 00:00:25]}
{[%emt 00:00:01]} 44. hxg5 {[%clk 00:00:33]} Kxg5 {[%clk 00:00:27]} {[%emt
00:00:01]} 45. Bc3 {[%clk 00:00:35]} Kg4 {[%clk 00:00:29]} {[%emt 00:00:01]} 46.
Bh8 {[%clk 00:00:37]} {[%emt 00:00:01]} Bd5 {[%clk 00:00:31]} {[%emt 00:00:01]}
47. Bc3 {[%clk 00:00:39]} {[%emt 00:00:01]} Bc4 {[%clk 00:00:33]} 48. Bd4
{[%clk 00:00:41]} 1/2-1/2